Cogmind - Beta 14 @@@ ROGUE MODE // 2024.08.28 @ 22:07:02 Player: APerTAS Result: Destroyed by Y-45 Defender with Beam Rifle Performance ------------- Evolutions (1) 500 Regions Visited (3) 600 Robots Destroyed (27) 135 Value Destroyed (671) 671 Prototype IDs (0) 0 Alien Tech Used (0) 0 Bonus (0) 0 TOTAL SCORE: 1906 Bonus ------- None Cogmind --------- Core Integrity 0/400 Matter 300/300 Energy 100/100 System Corruption 0% Temperature Cool (9) Movement Core (50) Location -9/Materials Parts ------- > --- POWER (1) -------- (None) > --- PROPULSION (2) --- (None) > --- UTILITY (4) ------ (None) > --- WEAPON (2) ------- (None) > --- INVENTORY (5) ---- Ion Engine Small Storage Unit Hacking Suite Grenade Launcher Grenade Launcher Peak State ------------ > --- POWER ------------ Improved Ion Engine > --- PROPULSION ------- Light Treads Light Treads > --- UTILITY ---------- Heat Sink High-capacity Storage Unit Structural Scanner Hacking Suite > --- WEAPON ----------- Beam Cannon Heavy Hammer > --- INVENTORY -------- Ion Engine Small Storage Unit Hacking Suite Grenade Launcher Grenade Launcher Hammer [Rating: 13] Favorites ----------- Power Ion Engine Engine Ion Engine Propulsion Light Treads Treads Light Treads Wheel Wheel Utility Structural Scanner Device Structural Scanner Storage Small Storage Unit Hackware Hacking Suite Weapon Light Assault Rifle Energy Cannon Beam Cannon Ballistic Gun Light Assault Rifle Launcher Grenade Launcher Impact Weapon Hammer Build | -11 -10 -10 -9 ------- Run | Yrd Mat Min Mat Slots Evolved 2 | . . . 2 Power . | . . . . Propulsion . | . . . . Utility 2 | . . . 2 Weapon . | . . . . Parts Attached 34 | 6 20 1 7 Power 10 | 1 6 1 2 Engine 10 | 1 6 1 2 Core . | . . . . Reactor . | . . . . Propulsion 10 | 2 8 . . Treads 5 | 2 3 . . Leg . | . . . . Wheel 5 | . 5 . . Hover . | . . . . Flight . | . . . . Utility 7 | 1 4 . 2 Device 3 | . 2 . 1 Storage 3 | 1 2 . . Processor . | . . . . Hackware 1 | . . . 1 Protection . | . . . . Artifact . | . . . . Weapon 7 | 2 2 . 3 Energy Gun . | . . . . Energy Cannon 1 | . . . 1 Ballistic Gun 3 | 2 1 . . Ballistic Cannon . | . . . . Launcher 1 | . . . 1 Special Weapon . | . . . . Impact Weapon 2 | . 1 . 1 Slashing Weapon . | . . . . Piercing Weapon . | . . . . Special Melee Weapon . | . . . . Unidentified Prototypes . | . . . . Parts Lost 6 | . 3 . 3 Power 2 | . 1 . 1 Propulsion 3 | . 2 . 1 Utility . | . . . . Weapon 1 | . . . 1 Highest Loss Streak 2 | . 2 . 1 To Critical Strikes 1 | . 1 . . Average Slot Usage (%) 96 | . 99 100 86 Engine 13 | . 14 14 10 Treads 15 | . 10 28 21 Wheel 10 | . 17 . . Device 13 | . 13 14 13 Storage 13 | . 14 14 10 Hackware 2 | . . . 10 Ballistic Gun 15 | . 21 14 2 Impact Weapon 8 | . 6 14 10 Peak Build Rating 13 | 6 8 8 13 Average Rating 8 | 3 7 8 10 On Entrance 5 | . 6 8 8 Naked Turns 18 | . . . 18 Heaviest Build 55 | 10 49 49 55 Greatest Support 40 | 40 40 40 40 Greatest Overweight (x) 1 | . 1 1 1 Average Overweight (x) . | . . 1 . Largest Inventory Capacity 20 | 8 20 20 20 Average Capacity 12 | 6 8 20 19 Most Carried 8 | 4 8 8 6 Average Carried 6 | 2 7 7 5 Final Capacity 20 | 8 20 20 5 Final Carried 8 | 4 8 7 5 Class Distribution -------------------- 93% | Mutant 6% | Scavenger-Mutant Dominant Class ---------------- Mutant | -10/Materials Mutant | -10/Mines Mutant | -9/Materials Resources | -11 -10 -10 -9 ----------- Run | Yrd Mat Min Mat Matter Collected 606 | 209 289 . 108 Remotely . | . . . . Salvage Created 816 | . 688 . 128 Parts 42 | . 37 . 5 Haulers Intercepted 1 | . 1 . . Recyclers Shooed 1 | . 1 . . Parts Field Recycled . | . . . . Retrieved Matter . | . . . . Parts Self-Destructed . | . . . . Prevented . | . . . . Kills | -11 -10 -10 -9 ------- Run | Yrd Mat Min Mat Combat Hostiles Destroyed 20 | . 17 . 3 Melee 2 | . 2 . . Guns 11 | . 11 . . Cannons 2 | . . . 2 Classes Destroyed 7 | . 6 . 1 Builder 1 | . 1 . . Hauler 1 | . 1 . . Operator 2 | . 2 . . Watcher 3 | . 2 . 1 Swarmer 6 | . 5 . 1 Grunt 12 | . 12 . . Sentry 2 | . . . 2 Best Kill Streak 5 | . 5 . 1 Combat Bots Only 4 | . 4 . 1 Max Kills in Single Turn 1 | . 1 . 1 Gunslinging . | . . . . Exploded . | . . . . Melee 1 | . 1 . . Uniques/NPCs Destroyed . | . . . . Combat | -11 -10 -10 -9 -------- Run | Yrd Mat Min Mat Hostile Shots Fired 193 | . 104 . 89 Missed 57 | . 29 . 28 Damage Taken 1611 | . 788 . 823 Core 538 | . 129 . 409 Absorbed by Shields . | . . . . Core Remaining (%) 74 | 100 . 48 . Volleys Fired 63 | . 56 . 7 Largest 2 | . 2 . 1 Hottest 60 | . 40 . 60 Shots Fired 112 | . 105 . 7 Gun 106 | . 105 . 1 Cannon 5 | . . . 5 Launcher 1 | . . . 1 Special . | . . . . Kinetic 106 | . 105 . 1 Thermal 5 | . . . 5 Explosive 1 | . . . 1 Electromagnetic . | . . . . Robot Hit Streak 12 | . 12 . 2 Robot Miss Streak 5 | . 5 . 2 Penetration Max . | . . . . Secondary Targets 1 | . 1 . . Max Gunslinging Chain 1 | . 1 . . Shots Hit Robots 104 | . 86 . 18 Core Hits 41 | . 33 . 8 Critical Kills 1 | . 1 . . Critical Parts Destroyed 9 | . 6 . 3 Critical Strikes 10 | . 7 . 3 Destroy 1 | . 1 . . Smash 9 | . 6 . 3 Melee Attacks 42 | . 24 . 18 Impact 42 | . 24 . 18 Slashing . | . . . . Piercing . | . . . . Sneak Attacks 1 | . 1 . . Combat Hostiles . | . . . . Follow-up Attacks . | . . . . Damage Inflicted 1583 | . 1162 . 421 Guns 602 | . 602 . . Cannons 53 | . . . 53 Explosions 45 | . . . 45 Melee 845 | . 560 . 285 Ramming 38 | . . . 38 Kinetic 602 | . 602 . . Thermal 53 | . . . 53 Explosive 45 | . . . 45 Electromagnetic . | . . . . Impact 845 | . 560 . 285 Slashing . | . . . . Piercing . | . . . . Highest Corruption 1 | . 1 1 . Average Corruption 1 | . 1 1 . Corruption Purged . | . . . . Corruption Blocked . | . . . . Effects 4 | . 2 2 . Message Errors 2 | . 1 1 . Heat Flow Errors 1 | . 1 . . Energy Discharges 1 | . . 1 . Overload Shots . | . . . . Overflow Damage 233 | . 187 . 46 Projectiles . | . . . . Explosions . | . . . . Melee 233 | . 187 . 46 Knockbacks 7 | . 7 . . Impact 7 | . 7 . . Kinetic . | . . . . Secondary . | . . . . Self-Inflicted Damage 15 | . . . 15 Shots . | . . . . Rammed 11 | . . . 11 Targets Rammed 11 | . . . 11 Kicked . | . . . . Crushed . | . . . . Highest Temperature 81 | . 81 . 6 Average Temperature 13 | . 13 . 6 Received Heat Transfer 597 | . 309 . 288 Siege Activations . | . . . . Robots Corrupted 7 | . 6 . 1 Combat Hostiles 5 | . 4 . 1 Parts Fried 7 | . 7 . . Impact Corruptions 11 | . 8 . 3 Robots Melted . | . . . . Combat Hostiles . | . . . . Parts Melted . | . . . . Heat Transferred 111 | . . . 111 Parts Sabotaged . | . . . . Parts Stolen . | . . . . Parts Stripped . | . . . . Power Chain Reactions . | . . . . Alert | -11 -10 -10 -9 ------- Run | Yrd Mat Min Mat Peak Influence 312 | . 312 67 141 Initial 67 | . . 67 26 Average 108 | . 148 67 53 Maximum Alert Level 1 | . 1 . . Low Security (%) 86 | 100 76 100 100 Level 1 13 | . 23 . . Level 2 . | . . . . Level 3 . | . . . . Level 4 . | . . . . Level 5 . | . . . . High Security . | . . . . Max Security . | . . . . Squads Dispatched 5 | . 5 . . Investigation 1 | . 1 . . Extermination . | . . . . Reinforcement 4 | . 4 . . Assault . | . . . . Garrison . | . . . . Intercept . | . . . . Searches Triggered . | . . . . Construction Impeded . | . . . . Haulers Reinforced . | . . . . Active Scanning Responses . | . . . . Cargo Convoy Interrupts . | . . . . Stealth | -11 -10 -10 -9 --------- Run | Yrd Mat Min Mat Distress Signals 3 | . 3 . . Communications Jammed . | . . . . Distress Signals . | . . . . Times Spotted 51 | . 39 . 12 Peak Tracking Total 8 | . 6 . 8 Tactical Retreats 1 | . 1 . . Traps | -11 -10 -10 -9 ------- Run | Yrd Mat Min Mat Traps Triggered 2 | . 2 . . Indirectly . | . . . . Trap Hack Attempts . | . . . . Triggered . | . . . . Disarmed . | . . . . Reprogrammed . | . . . . Reused . | . . . . Traps Extracted . | . . . . Installed . | . . . . Triggered . | . . . . Machines | -11 -10 -10 -9 ---------- Run | Yrd Mat Min Mat Machines Disabled . | . . . . Max in Single Turn . | . . . . Machines Repaired . | . . . . Machines Dismantled . | . . . . Machines Sabotaged . | . . . . Overloaded Fab Kills . | . . . . Hacking | -11 -10 -10 -9 --------- Run | Yrd Mat Min Mat Machines Accessed 5 | . 5 . . Terminals 4 | . 4 . . Fabricators . | . . . . Repair Stations . | . . . . Recycling Units 1 | . 1 . . Scanalyzers . | . . . . Garrison Access . | . . . . Total Hacks 12 | . 12 . . Successful 7 | . 7 . . Failed 5 | . 5 . . Catastrophic . | . . . . Database Lockouts . | . . . . Manual 10 | . 10 . . Terminals 10 | . 10 . . Fabricators . | . . . . Repair Stations . | . . . . Recycling Units 2 | . 2 . . Scanalyzers . | . . . . Garrison Access . | . . . . Terminal Hacks 3 | . 3 . . Locate Traps 2 | . 2 . . Hauler Manifests 1 | . 1 . . Fabricator Hacks . | . . . . Repair Station Hacks . | . . . . Recycling Unit Hacks . | . . . . Scanalyzer . | . . . . Garrison Access Hacks . | . . . . Unauthorized Hacks 4 | . 4 . . Terminals 3 | . 3 . . Botnet 2 | . 2 . . Disrupt 1 | . 1 . . Fabricators . | . . . . Repair Stations . | . . . . Recycling Units 1 | . 1 . . Reject 1 | . 1 . . Scanalyzers . | . . . . Garrison Access . | . . . . Data Cores Recovered . | . . . . Used . | . . . . Hacking Detections 5 | . 5 . . Full Trace Events . | . . . . Feedback Events . | . . . . Feedback Blocked . | . . . . Robot Schematics Acquired . | . . . . Robots Built . | . . . . Authchips . | . . . . Time . | . . . . Total Robot Build Rating . | . . . . Part Schematics Acquired . | . . . . Parts Built . | . . . . Authchips . | . . . . Time . | . . . . Total Part Build Rating . | . . . . Parts Repaired . | . . . . Time . | . . . . Parts Recycled . | . . . . Recycled Matter . | . . . . Retrieved Matter . | . . . . Retrieved Components . | . . . . Parts Scanalyzed . | . . . . Part Schematics Acquired . | . . . . Parts Damaged . | . . . . Bothacking | -11 -10 -10 -9 ------------ Run | Yrd Mat Min Mat Used RIF Installer . | . . . . Robots Hacked . | . . . . Non-combat . | . . . . Combat . | . . . . Robot Hacks Applied . | . . . . Relay Couplers Released . | . . . . Fabnet Peak Effective % . | . . . . Robots Rewired . | . . . . Allies Hacked . | . . . . Hacks Repelled . | . . . . Allies | -11 -10 -10 -9 -------- Run | Yrd Mat Min Mat Total Allies . | . . . . Largest Group . | . . . . Highest-Rated Group . | . . . . Highest-Rated Ally . | . . . . Total Orders . | . . . . Ally Attacks . | . . . . Total Damage . | . . . . Kills . | . . . . Allies Corrupted . | . . . . Allies Melted . | . . . . Intel | -11 -10 -10 -9 ------- Run | Yrd Mat Min Mat Robot Analysis Total . | . . . . Derelict Logs Recovered . | . . . . Drone Launches . | . . . . Drone Recoveries . | . . . . Exploration | -11 -10 -10 -9 ------------- Run | Yrd Mat Min Mat Turns Passed 1818 | 70 1071 235 442 Spaces Moved 1026 | 38 729 98 161 Core 17 | 2 . . 15 Treads 440 | 36 160 98 146 Legs . | . . . . Wheels 569 | . 569 . . Hover . | . . . . Flight . | . . . . Fastest Speed 50 | 50 80 240 50 Average Speed 138 | 154 105 240 222 Slowest Speed 240 | 160 240 240 240 Overloaded Moves . | . . . . Propulsion Burnouts . | . . . . Robots Hopped . | . . . . Cave-ins Triggered . | . . . . Exploration Rate (%) 37 | 4 99 26 20 Regions Visited 3 Branch Regions 1 Pre-discovered Areas 1 | . . 1 . Known Exits Taken . | . . . . Unknown Exits Taken 3 | 1 1 1 . Scrap Searched . | . . . . Spaces Dug . | . . . . Terrain Destroyed 8 | . . . 8 Melee . | . . . . Projectile . | . . . . AOE 8 | . . . 8 Terrain Rammed . | . . . . Walls Destroyed . | . . . . Machines Disabled . | . . . . Actions | -11 -10 -10 -9 --------- Run | Yrd Mat Min Mat Total 1259 | 47 908 99 205 Wait 52 | . 52 . . Move 1023 | 37 728 97 161 Hop . | . . . . Pick Up 18 | 4 13 . 1 Fast Attach 7 | 6 1 . . Attach 7 | . 3 . 4 Detach . | . . . . Swap 20 | . 16 1 3 Drop 16 | . 15 1 . Fire 63 | . 56 . 7 Melee 42 | . 24 . 18 Ram 11 | . . . 11 Kick . | . . . . Crush . | . . . . Escape Stasis . | . . . . Rewire . | . . . . Trap . | . . . . Miscellaneous . | . . . . Route ------- -11/Scrapyard -10/Materials (discovered 5 exits: [*Mat x3] / [*Min x2]) -10/Mines -9/Materials (discovered 1 exit: [*Min]) History --------- Turn | Location | Event 23 | -11/Scrapyard | Discovered new exit (range 15) 71 | -11/Scrapyard | Entered Materials 314 | -10/Materials | Build established: Mutant 573 | -10/Materials | Discovered new exit (range 5) 735 | -10/Materials | Discovered new exit (range 6) 812 | -10/Materials | Discovered new exit (range 14) 901 | -10/Materials | Core integrity fell below 50% 1007 | -10/Materials | Discovered new exit (range 15) 1085 | -10/Materials | Discovered new exit (range 8) 1142 | -10/Materials | Entered Mines 1143 | -10/Mines | Learned location of Storage (-9) 1320 | -10/Mines | Discovered new exit (range 8) 1377 | -10/Mines | Entered Materials 1377 | -9/Materials | Evolved 2 slots: Utility x2 1434 | -9/Materials | Discovered new exit (range 16) 1801 | -9/Materials | Released all parts (8) 1811 | -9/Materials | Core integrity fell below 50% 1814 | -9/Materials | Core integrity fell below 20% 1819 | -9/Materials | Destroyed by Y-45 Defender with Beam Rifle Last Messages --------------- 01781_ K-01 Serf collects debris. 01794_ Acquired 55 matter. 01796_ K-01 Serf collects debris. 01799_ Lgt. Treads destroyed. 01800_ K-01 Serf collects debris. 01801_ Released Beam Cannon. 01801_ Released Heat Sink. 01801_ Released Hvy. Hammer. 01801_ Released Hcp. Storage Unit. 01801_ Released Structural Scanner. 01801_ Released Lgt. Treads. 01801_ Released Hacking Suite. 01801_ Released Imp. Ion Engine. 01801_ M-13 Machinist destroyed. 01803_ S-10 Pest destroyed. 01804_ K-01 Serf collects debris. 01807_ S-10 Pest destroyed. 01808_ Slammed into S-10 Pest. 01810_ Acquired 18 matter. 01810_ Slammed into S-10 Pest. Map ----- +----------------------------------------------------+ | ???????????????????????????????????????? | | ???????????????????????????????????????? | | ???????????????????????????????????????? | | ???????????????????????????????????????? | | ???????????????????????????????????????? | | ???????????????????????????????????????? | | ???????????????????????????????????????? | | ???????????????????????????????????????? | | ????????????????????? ?????????????????? | | ???????????????????? ?????????????????? | | ???????????????????? ?????????????????? | | ???????????????????? ?????????????????? | | ?? #????????????? ?????????????????? | | ??#####?????????????# ?????????????????? | | ?? ?????????????# ?????????????????? | | ??? ??????????????# #????????????????? | | ???"""?" ??????????# #????????????????? | | ???"""""" ??????????# #????????????????? | | ???" """ ???????????# #????????????????? | | ???????????# #????????????????? | | ####+#############??# #####????????????? | | ## ^ ############## #????????????? | | =!* *%! Y #????????????? | | /]! ! = +????????????? | | ! %=%*Y s#????????????? | | ## / #####+####+### %%%@#????????????? | | ######### ??###+###????????????? | | #########????????????? ?????????????? | | ?????????????????????? #????????????? | | ?????????????????????# "#????????????? | | ?????????????????????# T#????????????? | | ?????????????????????# ! "#????????????? | | ?????????????????????# #????????????? | | ?????????????????????######????????????? | | ???????????????????????????????????????? | | ???????????????????????????????????????? | | ???????????????????????????????????????? | | ???????????????????????????????????????? | | ???????????????????????????????????????? | | ???????????????????????????????????????? | | ?????????????????????????????????????? | | #????????????????????????????????????? | | ###????????????????????????????????????? | | ????????????????????????????????????? | | ???????????????????????????????????????? | | ???????????????????????????????????????? | | ???????????????????????????????????????? | | ???????????????????????????????????????? | | ???????????????????????????????????????? | | ???????????????????????????????????????? | +----------------------------------------------------+ Best States ------------- Heat Dissipation 38 Energy Generation 12 Energy Capacity 265 Matter Stores 300 Matter Capacity 300 Sight Range 16 Terrain Scan Density 10 Evasion (%) 44 Recoil Reduction 2 Offensive Hacking 10 Item Schematics ----------------- None Robot Schematics ------------------ None Fabricated ------------ Nothing Alien Tech Used ----------------- None Achievements -------------- None Challenges ------------ None Game ------ Seed SubdwellerPulseBroadsword Manual? 0 Play Time 00:15:28 Cumulative 28.2 hours Start 2024.08.28 @ 21:53:10 End 2024.08.28 @ 22:07:02 Sessions 1 Manual Loads 0 Difficulty Rogue Special Mode None Game No. 98 Rogue 98 Adventurer 0 Explorer 0 Win Type - Total 0 Types 0/0/0/0/0/0/0/0/0 Lore% 34 Gallery% 27 Achievement% 32 Wizard Run 0 Options --------- Layout 0 ASCII 0 Keyboard 0 Movement Arrows Keybinds 0 Fullscreen 1 Font 24/Terminus Map View 64x52 Zoom Use 0% Tactical HUD 1 Map Filters NONE Filters NONE Steam X RUN: be5aacf0-023e-45c6-9770-1f3a41f33b50